[Event "*** Titled Tuesday Blitz"]
[Site "Chess.com"]
[Date "2020.05.19"]
[Round "5"]
[White "Jadeit90"]
[Black "Abdodi"]
[Result "1/2-1/2"]
[WhiteElo "2316"]
[BlackElo "2154"]
[TimeControl "180+1"]
[EndTime "12:59:15 PDT"]
[Termination "Game drawn by repetition"]

1. g3 {[%clk 0:03:00.9]} 1... g6 {[%clk 0:02:59.6]} 2. Bg2 {[%clk 0:02:58.8]}
2... Bg7 {[%clk 0:03:00.5]} 3. e4 {[%clk 0:02:59.3]} 3... d6 {[%clk 0:02:59.4]}
4. Nc3 {[%clk 0:02:59.8]} 4... Nf6 {[%clk 0:02:58.9]} 5. d4 {[%clk 0:02:59.7]}
5... O-O {[%clk 0:02:58.4]} 6. Nge2 {[%clk 0:03:00.1]} 6... Nc6 {[%clk
0:02:53.8]} 7. O-O {[%clk 0:03:00.3]} 7... e5 {[%clk 0:02:53.1]} 8. d5 {[%clk
0:03:00.7]} 8... Ne7 {[%clk 0:02:52.5]} 9. a4 {[%clk 0:03:01.3]} 9... Nh5 {[%clk
0:02:46.3]} 10. a5 {[%clk 0:03:01.5]} 10... a6 {[%clk 0:02:39.7]} 11. b4 {[%clk
0:02:59.7]} 11... f5 {[%clk 0:02:37.1]} 12. b5 {[%clk 0:02:59.7]} 12... axb5
{[%clk 0:02:35.9]} 13. Nxb5 {[%clk 0:02:59.6]} 13... fxe4 {[%clk 0:02:34.3]} 14.
Bxe4 {[%clk 0:02:59.3]} 14... Bh3 {[%clk 0:02:32]} 15. Bg2 {[%clk 0:02:56.7]}
15... Bxg2 {[%clk 0:02:30.8]} 16. Kxg2 {[%clk 0:02:57.6]} 16... Qd7 {[%clk
0:02:25.3]} 17. c4 {[%clk 0:02:56.4]} 17... c6 {[%clk 0:02:18.3]} 18. dxc6
{[%clk 0:02:55.7]} 18... Qxc6+ {[%clk 0:02:19.2]} 19. Kg1 {[%clk 0:02:55]} 19...
Rad8 {[%clk 0:02:15.2]} 20. Bg5 {[%clk 0:02:42.4]} 20... Bf6 {[%clk 0:02:11.8]}
21. Bxf6 {[%clk 0:02:42.5]} 21... Rxf6 {[%clk 0:02:11.9]} 22. Qb3 {[%clk
0:02:37.2]} 22... Rf3 {[%clk 0:02:04.4]} 23. Qa2 {[%clk 0:02:36]} 23... Rdf8
{[%clk 0:01:59.6]} 24. a6 {[%clk 0:02:16.5]} 24... bxa6 {[%clk 0:01:53.4]} 25.
Qxa6 {[%clk 0:02:16.6]} 25... Qxc4 {[%clk 0:01:52.7]} 26. Nxd6 {[%clk
0:02:14.5]} 26... Qxa6 {[%clk 0:01:44.8]} 27. Rxa6 {[%clk 0:02:15.4]} 27... R3f6
{[%clk 0:01:28.2]} 28. Nc3 {[%clk 0:02:09.7]} 28... Nc8 {[%clk 0:01:12.3]} 29.
Nce4 {[%clk 0:02:08.9]} 29... Nxd6 {[%clk 0:01:12.1]} 30. Rxd6 {[%clk
0:02:06.3]} 30... Rxd6 {[%clk 0:01:11.2]} 31. Nxd6 {[%clk 0:02:07.2]} 31... Rd8
{[%clk 0:01:10]} 32. Ne4 {[%clk 0:02:07]} 32... Rd4 {[%clk 0:01:09.7]} 33. Re1
{[%clk 0:02:06.9]} 33... Kg7 {[%clk 0:00:53.9]} 34. Kg2 {[%clk 0:02:05.4]} 34...
Nf6 {[%clk 0:00:53.3]} 35. Ng5 {[%clk 0:02:01.2]} 35... Rd5 {[%clk 0:00:52.7]}
36. Nf3 {[%clk 0:01:59.4]} 36... Nd7 {[%clk 0:00:50.8]} 37. Re4 {[%clk
0:01:58.7]} 37... Kf6 {[%clk 0:00:49]} 38. Ra4 {[%clk 0:01:58.7]} 38... Rd6
{[%clk 0:00:43.9]} 39. h4 {[%clk 0:01:56.6]} 39... h6 {[%clk 0:00:41.1]} 40. Ra5
{[%clk 0:01:53.8]} 40... Re6 {[%clk 0:00:40]} 41. Nd2 {[%clk 0:01:53.4]} 41...
e4 {[%clk 0:00:36.9]} 42. Ra3 {[%clk 0:01:49.3]} 42... Nc5 {[%clk 0:00:33.9]}
43. Re3 {[%clk 0:01:49]} 43... Ke5 {[%clk 0:00:28.3]} 44. Nf3+ {[%clk
0:01:42.4]} 44... Kd5 {[%clk 0:00:24]} 45. Nd2 {[%clk 0:01:41.6]} 45... Kd4
{[%clk 0:00:22.9]} 46. Nb3+ {[%clk 0:01:39]} 46... Nxb3 {[%clk 0:00:19.8]} 47.
Rxb3 {[%clk 0:01:38.5]} 47... e3 {[%clk 0:00:19.9]} 48. fxe3+ {[%clk 0:01:32.4]}
48... Rxe3 {[%clk 0:00:19.4]} 49. Rb6 {[%clk 0:01:30.4]} 49... g5 {[%clk
0:00:18]} 50. Rxh6 {[%clk 0:01:28.4]} 50... gxh4 {[%clk 0:00:15.3]} 51. Rxh4+
{[%clk 0:01:25.3]} 51... Ke5 {[%clk 0:00:15.7]} 52. Rf4 {[%clk 0:01:25.4]} 52...
Re1 {[%clk 0:00:15.2]} 53. Rf2 {[%clk 0:01:22.5]} 53... Ke6 {[%clk 0:00:14.8]}
54. g4 {[%clk 0:01:22.8]} 54... Ke7 {[%clk 0:00:13.3]} 55. Kg3 {[%clk
0:01:23.1]} 55... Rg1+ {[%clk 0:00:13.4]} 56. Kh4 {[%clk 0:01:23.4]} 56... Rh1+
{[%clk 0:00:13.5]} 57. Kg5 {[%clk 0:01:17.6]} 57... Rh8 {[%clk 0:00:14.1]} 58.
Rf3 {[%clk 0:00:21]} 58... Rg8+ {[%clk 0:00:12.8]} 59. Kh4 {[%clk 0:00:21.2]}
59... Rh8+ {[%clk 0:00:12.8]} 60. Kg3 {[%clk 0:00:21.5]} 60... Rg8 {[%clk
0:00:12.3]} 61. Kh4 {[%clk 0:00:20.6]} 61... Rh8+ {[%clk 0:00:12.5]} 62. Kg3
{[%clk 0:00:20.8]} 62... Rg8 {[%clk 0:00:12.1]} 63. Rf1 {[%clk 0:00:21.4]} 63...
Ke6 {[%clk 0:00:11.7]} 64. Kh4 {[%clk 0:00:21.4]} 64... Rh8+ {[%clk 0:00:11.5]}
65. Kg5 {[%clk 0:00:21.8]} 65... Rg8+ {[%clk 0:00:11.9]} 66. Kh5 {[%clk
0:00:21.6]} 66... Rh8+ {[%clk 0:00:12]} 67. Kg5 {[%clk 0:00:21.9]} 67... Rg8+
{[%clk 0:00:12.4]} 68. Kh4 {[%clk 0:00:22.4]} 68... Rh8+ {[%clk 0:00:11.8]} 69.
Kg3 {[%clk 0:00:23.1]} 69... Rg8 {[%clk 0:00:12.1]} 70. Rf2 {[%clk 0:00:22.9]}
70... Ke5 {[%clk 0:00:12]} 71. Rf7 {[%clk 0:00:22.2]} 71... Ke6 {[%clk
0:00:11.9]} 72. Rf1 {[%clk 0:00:22.1]} 72... Ke5 {[%clk 0:00:12.4]} 73. Rf5+
{[%clk 0:00:21.3]} 73... Ke6 {[%clk 0:00:12.6]} 74. Kf4 {[%clk 0:00:21.8]} 74...
Rh8 {[%clk 0:00:12]} 75. Ra5 {[%clk 0:00:21.1]} 75... Rf8+ {[%clk 0:00:11.5]}
76. Kg5 {[%clk 0:00:20.9]} 76... Rg8+ {[%clk 0:00:11.7]} 77. Kh4 {[%clk
0:00:21.1]} 77... Rh8+ {[%clk 0:00:12.1]} 78. Kg3 {[%clk 0:00:21.5]} 78... Kf6
{[%clk 0:00:11.7]} 79. Ra6+ {[%clk 0:00:20.6]} 79... Kg7 {[%clk 0:00:11.6]} 80.
Kf4 {[%clk 0:00:20.3]} 80... Rf8+ {[%clk 0:00:12.1]} 81. Kg5 {[%clk 0:00:20.6]}
81... Rf7 {[%clk 0:00:12.3]} 82. Kh5 {[%clk 0:00:19.7]} 82... Rb7 {[%clk
0:00:12]} 83. g5 {[%clk 0:00:20]} 83... Rc7 {[%clk 0:00:12.2]} 84. Rg6+ {[%clk
0:00:19.6]} 84... Kh7 {[%clk 0:00:12.7]} 85. Ra6 {[%clk 0:00:18.6]} 85... Kg7
{[%clk 0:00:13.1]} 86. Kg4 {[%clk 0:00:18.8]} 86... Rc4+ {[%clk 0:00:12.6]} 87.
Kf5 {[%clk 0:00:19.2]} 87... Rc5+ {[%clk 0:00:13]} 88. Kg4 {[%clk 0:00:19.4]}
88... Rc4+ {[%clk 0:00:13.4]} 89. Kh5 {[%clk 0:00:19.9]} 89... Rc7 {[%clk
0:00:13.7]} 1/2-1/2

[Event "*** Titled Tuesday Blitz"]
[Site "Chess.com"]
[Date "2020.05.19"]
[Round "5"]
[White "ENEASZ"]
[Black "kleopl"]
[Result "1-0"]
[WhiteElo "2537"]
[BlackElo "2368"]
[TimeControl "180+1"]
[EndTime "12:59:17 PDT"]
[Termination "ENEASZ won by resignation"]

1. e4 {[%clk 0:03:00.9]} 1... d5 {[%clk 0:02:58.6]} 2. exd5 {[%clk 0:02:59.5]}
2... Qxd5 {[%clk 0:02:59.5]} 3. Nc3 {[%clk 0:02:59.3]} 3... Qd6 {[%clk 0:02:59]}
4. d4 {[%clk 0:02:56.8]} 4... Nf6 {[%clk 0:02:58.5]} 5. Nf3 {[%clk 0:02:55.4]}
5... c6 {[%clk 0:02:58.2]} 6. Ne5 {[%clk 0:02:53.4]} 6... Nbd7 {[%clk
0:02:57.9]} 7. Nc4 {[%clk 0:02:53.1]} 7... Qc7 {[%clk 0:02:57.5]} 8. g3 {[%clk
0:02:53.4]} 8... Nb6 {[%clk 0:02:56.1]} 9. Bf4 {[%clk 0:02:52.3]} 9... Qd8
{[%clk 0:02:51.9]} 10. Qd2 {[%clk 0:02:25]} 10... Bf5 {[%clk 0:02:37.4]} 11. Ne3
{[%clk 0:02:08.7]} 11... Bg6 {[%clk 0:02:34.5]} 12. Bg2 {[%clk 0:02:02]} 12...
e6 {[%clk 0:02:32.5]} 13. a4 {[%clk 0:01:50.8]} 13... Nbd5 {[%clk 0:02:30.2]}
14. Nexd5 {[%clk 0:01:44.9]} 14... Nxd5 {[%clk 0:02:21.9]} 15. Bg5 {[%clk
0:01:30.9]} 15... Be7 {[%clk 0:02:18.7]} 16. Bxe7 {[%clk 0:01:30.4]} 16... Qxe7
{[%clk 0:02:15.7]} 17. O-O {[%clk 0:01:30.7]} 17... O-O {[%clk 0:02:12.4]} 18.
Nxd5 {[%clk 0:01:29.8]} 18... cxd5 {[%clk 0:02:08.9]} 19. c3 {[%clk 0:01:29.8]}
19... Rab8 {[%clk 0:02:06.6]} 20. a5 {[%clk 0:01:28.8]} 20... b5 {[%clk
0:02:04.5]} 21. axb6 {[%clk 0:01:25.5]} 21... axb6 {[%clk 0:02:05.4]} 22. Ra2
{[%clk 0:01:21.1]} 22... b5 {[%clk 0:02:03.5]} 23. b4 {[%clk 0:01:20.8]} 23...
Rfc8 {[%clk 0:02:01.3]} 24. Rfa1 {[%clk 0:01:20.2]} 24... Rc7 {[%clk 0:01:58.6]}
25. Ra8 {[%clk 0:01:16.1]} 25... Qd8 {[%clk 0:01:50.5]} 26. Rxb8 {[%clk
0:01:15.3]} 26... Qxb8 {[%clk 0:01:51.4]} 27. Bf1 {[%clk 0:01:14.3]} 27... Rc8
{[%clk 0:01:44.1]} 28. f3 {[%clk 0:01:12.2]} 28... h6 {[%clk 0:01:41.5]} 29. Ra5
{[%clk 0:01:11.8]} 29... Qc7 {[%clk 0:01:35.5]} 30. Ra3 {[%clk 0:01:11.7]} 30...
Qc6 {[%clk 0:01:33.7]} 31. Kf2 {[%clk 0:01:11.5]} 31... f6 {[%clk 0:01:30.4]}
32. Qe3 {[%clk 0:01:11]} 32... Be8 {[%clk 0:01:28.2]} 33. h4 {[%clk 0:01:03.2]}
33... g5 {[%clk 0:01:21.3]} 34. Bh3 {[%clk 0:00:55.8]} 34... Bf7 {[%clk
0:00:46.2]} 35. f4 {[%clk 0:00:53.5]} 35... gxh4 {[%clk 0:00:41.8]} 36. gxh4
{[%clk 0:00:54.4]} 36... f5 {[%clk 0:00:34.1]} 37. Qg3+ {[%clk 0:00:48.2]} 37...
Kf8 {[%clk 0:00:32.5]} 38. Bf1 {[%clk 0:00:45.6]} 38... Rc7 {[%clk 0:00:22.5]}
39. Ke1 {[%clk 0:00:44.5]} 39... Be8 {[%clk 0:00:21.2]} 40. Kd2 {[%clk
0:00:44.5]} 40... Rc8 {[%clk 0:00:19.9]} 41. Be2 {[%clk 0:00:44.7]} 41... Ra8
{[%clk 0:00:18.6]} 42. Rxa8 {[%clk 0:00:41.1]} 42... Qxa8 {[%clk 0:00:19.5]} 43.
Bd1 {[%clk 0:00:32.8]} 43... Qa2+ {[%clk 0:00:18.8]} 44. Bc2 {[%clk 0:00:33.2]}
44... Qa1 {[%clk 0:00:18.6]} 45. Qe3 {[%clk 0:00:26.5]} 45... Kf7 {[%clk
0:00:14.4]} 46. Bd1 {[%clk 0:00:18.8]} 46... Qb2+ {[%clk 0:00:13.9]} 47. Bc2
{[%clk 0:00:19.1]} 47... Qa1 {[%clk 0:00:13.9]} 48. Qe5 {[%clk 0:00:15.8]} 48...
Qg1 {[%clk 0:00:12]} 49. Qc7+ {[%clk 0:00:14]} 49... Kf8 {[%clk 0:00:12.2]} 50.
Qd6+ {[%clk 0:00:13.4]} 50... Kf7 {[%clk 0:00:12.3]} 51. Qc7+ {[%clk 0:00:13.4]}
51... Kf8 {[%clk 0:00:12.6]} 52. Bd3 {[%clk 0:00:06.7]} 52... Qf2+ {[%clk
0:00:11.8]} 53. Be2 {[%clk 0:00:05.7]} 53... Qxh4 {[%clk 0:00:11.6]} 54. Qd6+
{[%clk 0:00:03.6]} 54... Qe7 {[%clk 0:00:11.7]} 55. Qe5 {[%clk 0:00:03.5]} 55...
Qf7 {[%clk 0:00:10.1]} 56. Qh8+ {[%clk 0:00:03.3]} 56... Ke7 {[%clk 0:00:08.7]}
57. Qxh6 {[%clk 0:00:04.2]} 57... Qf6 {[%clk 0:00:08.9]} 58. Qh7+ {[%clk
0:00:04]} 58... Qf7 {[%clk 0:00:08.6]} 59. Qh4+ {[%clk 0:00:04]} 59... Kd7
{[%clk 0:00:08.3]} 60. Bxb5+ {[%clk 0:00:02.7]} 60... Kd6 {[%clk 0:00:08.2]} 61.
Bxe8 {[%clk 0:00:02.6]} 61... Qxe8 {[%clk 0:00:09.1]} 62. Qf6 {[%clk 0:00:02.8]}
62... Kd7 {[%clk 0:00:06.4]} 63. Qg7+ {[%clk 0:00:02.6]} 63... Kd6 {[%clk
0:00:06.5]} 64. Qa7 {[%clk 0:00:03]} 64... Qh8 {[%clk 0:00:06.5]} 65. Qc5+
{[%clk 0:00:02.7]} 65... Kd7 {[%clk 0:00:06.5]} 66. Qa7+ {[%clk 0:00:03.6]}
66... Kd6 {[%clk 0:00:06.5]} 67. Qb6+ {[%clk 0:00:04.2]} 67... Ke7 {[%clk
0:00:06.2]} 68. Kc2 {[%clk 0:00:04.6]} 68... Qh2+ {[%clk 0:00:05.5]} 69. Kb3
{[%clk 0:00:05.1]} 69... Qxf4 {[%clk 0:00:06.3]} 70. Qb7+ {[%clk 0:00:05.3]}
70... Kf6 {[%clk 0:00:06.6]} 71. b5 {[%clk 0:00:05.9]} 71... Qc1 {[%clk
0:00:06.8]} 72. b6 {[%clk 0:00:05.7]} 72... f4 {[%clk 0:00:07.1]} 73. Qc7 {[%clk
0:00:05.3]} 73... f3 {[%clk 0:00:06.7]} 74. b7 {[%clk 0:00:05.7]} 74... Qb1+
{[%clk 0:00:06.5]} 75. Ka4 {[%clk 0:00:05.2]} 75... f2 {[%clk 0:00:06.6]} 76.
b8=Q {[%clk 0:00:05.1]} 76... Qa1+ {[%clk 0:00:06.8]} 77. Kb4 {[%clk 0:00:04.5]}
77... Qb2+ {[%clk 0:00:05.5]} 78. Ka4 {[%clk 0:00:04]} 78... Qa2+ {[%clk
0:00:05.4]} 79. Kb4 {[%clk 0:00:04.3]} 79... Qb2+ {[%clk 0:00:05.9]} 80. Kc5
{[%clk 0:00:04.4]} 80... Qxc3+ {[%clk 0:00:06.1]} 81. Kd6 {[%clk 0:00:05]} 81...
Qxc7+ {[%clk 0:00:06.1]} 82. Kxc7 {[%clk 0:00:05.9]} 82... Kf5 {[%clk
0:00:04.4]} 83. Qf8+ {[%clk 0:00:05.7]} 83... Ke4 {[%clk 0:00:04.8]} 84. Qxf2
{[%clk 0:00:06.6]} 84... e5 {[%clk 0:00:05.2]} 85. dxe5 {[%clk 0:00:07.1]} 85...
Kxe5 {[%clk 0:00:06.1]} 86. Kc6 {[%clk 0:00:08]} 86... d4 {[%clk 0:00:06.5]} 87.
Kc5 {[%clk 0:00:08.9]} 87... d3 {[%clk 0:00:06.7]} 88. Kc4 {[%clk 0:00:09.8]}
88... Ke4 {[%clk 0:00:06.9]} 89. Qd2 {[%clk 0:00:09.7]} 1-0

[Event "*** Titled Tuesday Blitz"]
[Site "Chess.com"]
[Date "2020.05.19"]
[Round "5"]
[White "Chessialist"]
[Black "Harsha_Bharathakoti"]
[Result "0-1"]
[WhiteElo "2556"]
[BlackElo "2754"]
[TimeControl "180+1"]
[EndTime "12:59:20 PDT"]
[Termination "Harsha_Bharathakoti won on time"]

1. e4 {[%clk 0:03:00.9]} 1... c5 {[%clk 0:02:59.8]} 2. Nf3 {[%clk 0:03:00.8]}
2... Nc6 {[%clk 0:03:00.5]} 3. d4 {[%clk 0:03:00.7]} 3... cxd4 {[%clk
0:03:01.4]} 4. Nxd4 {[%clk 0:03:01.4]} 4... e5 {[%clk 0:03:01.8]} 5. Nb5 {[%clk
0:02:59.7]} 5... d6 {[%clk 0:03:02.1]} 6. N1c3 {[%clk 0:02:59.4]} 6... a6 {[%clk
0:03:01.1]} 7. Na3 {[%clk 0:02:59.7]} 7... Be7 {[%clk 0:03:01.9]} 8. Nd5 {[%clk
0:02:59.3]} 8... Nf6 {[%clk 0:03:00.8]} 9. Nxf6+ {[%clk 0:02:54]} 9... Bxf6
{[%clk 0:03:00.7]} 10. c4 {[%clk 0:02:54.6]} 10... O-O {[%clk 0:02:58.6]} 11.
Be2 {[%clk 0:02:53.9]} 11... Bg5 {[%clk 0:02:33.2]} 12. O-O {[%clk 0:02:52.8]}
12... Be6 {[%clk 0:02:24.5]} 13. Nc2 {[%clk 0:02:48.6]} 13... Rc8 {[%clk
0:02:12.8]} 14. b3 {[%clk 0:02:44.7]} 14... Bxc1 {[%clk 0:01:55.3]} 15. Rxc1
{[%clk 0:02:43.8]} 15... Qa5 {[%clk 0:01:55.9]} 16. a3 {[%clk 0:02:25.5]} 16...
b5 {[%clk 0:01:36.6]} 17. b4 {[%clk 0:02:14.6]} 17... Qb6 {[%clk 0:01:26.7]} 18.
cxb5 {[%clk 0:02:13]} 18... axb5 {[%clk 0:01:27.6]} 19. Qxd6 {[%clk 0:02:10.2]}
19... Rfd8 {[%clk 0:01:10.2]} 20. Qc5 {[%clk 0:02:09.7]} 20... Qxc5 {[%clk
0:01:10.7]} 21. bxc5 {[%clk 0:02:10.6]} 21... Na5 {[%clk 0:01:11.5]} 22. Nb4
{[%clk 0:01:16.2]} 22... Nb3 {[%clk 0:01:09.4]} 23. Rc3 {[%clk 0:01:16.3]} 23...
Rxc5 {[%clk 0:01:00.3]} 24. Rxc5 {[%clk 0:01:11.3]} 24... Nxc5 {[%clk
0:01:01.2]} 25. Bxb5 {[%clk 0:01:11.6]} 25... Nxe4 {[%clk 0:01:00.8]} 26. Nc6
{[%clk 0:01:12]} 26... Rd2 {[%clk 0:00:52.5]} 27. Nxe5 {[%clk 0:01:08.3]} 27...
f6 {[%clk 0:00:49.6]} 28. Nf3 {[%clk 0:01:00]} 28... Ra2 {[%clk 0:00:49.6]} 29.
a4 {[%clk 0:01:00.2]} 29... Nc3 {[%clk 0:00:49.5]} 30. Nd4 {[%clk 0:00:57.4]}
30... Bd5 {[%clk 0:00:49.6]} 31. h4 {[%clk 0:00:43]} 31... Nxa4 {[%clk 0:00:42]}
32. Bxa4 {[%clk 0:00:42.7]} 32... Rxa4 {[%clk 0:00:42.9]} 33. Nf5 {[%clk
0:00:43.5]} 33... Kf7 {[%clk 0:00:39.8]} 34. Re1 {[%clk 0:00:42.5]} 34... Ra7
{[%clk 0:00:32.5]} 35. h5 {[%clk 0:00:42.6]} 35... g6 {[%clk 0:00:27.5]} 36.
Nd6+ {[%clk 0:00:40.3]} 36... Kg7 {[%clk 0:00:27.8]} 37. Ne8+ {[%clk 0:00:40.5]}
37... Kf7 {[%clk 0:00:27.8]} 38. h6 {[%clk 0:00:41]} 38... Rd7 {[%clk
0:00:25.7]} 39. Ng7 {[%clk 0:00:40.4]} 39... g5 {[%clk 0:00:26]} 40. Nf5 {[%clk
0:00:39.3]} 40... Kg6 {[%clk 0:00:20.4]} 41. Ne7+ {[%clk 0:00:38.9]} 41... Kxh6
{[%clk 0:00:20.8]} 42. Nxd5 {[%clk 0:00:33.7]} 42... Rxd5 {[%clk 0:00:21.7]} 43.
g3 {[%clk 0:00:33.9]} 43... Kg6 {[%clk 0:00:20.9]} 44. Kg2 {[%clk 0:00:34.4]}
44... h5 {[%clk 0:00:21.6]} 45. Ra1 {[%clk 0:00:34.6]} 45... Rd2 {[%clk
0:00:21.7]} 46. Ra6 {[%clk 0:00:35]} 46... Re2 {[%clk 0:00:20.7]} 47. Rb6 {[%clk
0:00:34.4]} 47... Kf5 {[%clk 0:00:20.8]} 48. Rb5+ {[%clk 0:00:34.8]} 48... Re5
{[%clk 0:00:21.2]} 49. Rb6 {[%clk 0:00:35.3]} 49... Rc5 {[%clk 0:00:21.8]} 50.
Ra6 {[%clk 0:00:35.4]} 50... h4 {[%clk 0:00:19]} 51. gxh4 {[%clk 0:00:34.2]}
51... gxh4 {[%clk 0:00:19.9]} 52. Ra4 {[%clk 0:00:34.2]} 52... Kg5 {[%clk
0:00:19.9]} 53. Kh3 {[%clk 0:00:33.5]} 53... Rc3+ {[%clk 0:00:20.1]} 54. Kg2
{[%clk 0:00:33.8]} 54... f5 {[%clk 0:00:20.5]} 55. Ra8 {[%clk 0:00:33.9]} 55...
h3+ {[%clk 0:00:16.9]} 56. Kh2 {[%clk 0:00:33.6]} 56... Kg4 {[%clk 0:00:17.6]}
57. Rg8+ {[%clk 0:00:32.8]} 57... Kf4 {[%clk 0:00:18.2]} 58. Rh8 {[%clk
0:00:26.2]} 58... Rc2 {[%clk 0:00:11.8]} 59. Kg1 {[%clk 0:00:18.2]} 59... Kg4
{[%clk 0:00:11.1]} 60. Rg8+ {[%clk 0:00:18]} 60... Kf4 {[%clk 0:00:11.8]} 61.
Rh8 {[%clk 0:00:18.2]} 61... Rc1+ {[%clk 0:00:07.3]} 62. Kh2 {[%clk 0:00:17.8]}
62... Kf3 {[%clk 0:00:08.2]} 63. Rxh3+ {[%clk 0:00:12.9]} 63... Kxf2 {[%clk
0:00:08.6]} 64. Ra3 {[%clk 0:00:13]} 64... Re1 {[%clk 0:00:04.3]} 65. Ra2+
{[%clk 0:00:12.5]} 65... Re2 {[%clk 0:00:03]} 66. Ra1 {[%clk 0:00:12]} 66... f4
{[%clk 0:00:03.6]} 67. Rb1 {[%clk 0:00:11.3]} 67... Rd2 {[%clk 0:00:01.2]} 68.
Ra1 {[%clk 0:00:11.4]} 68... Re2 {[%clk 0:00:01.3]} 69. Rb1 {[%clk 0:00:11.1]}
69... f3 {[%clk 0:00:02.2]} 70. Ra1 {[%clk 0:00:10.7]} 70... Re3 {[%clk
0:00:03.1]} 71. Ra2+ {[%clk 0:00:10.9]} 71... Kf1 {[%clk 0:00:03.2]} 72. Ra1+
{[%clk 0:00:07.5]} 72... Re1 {[%clk 0:00:03.7]} 73. Ra2 {[%clk 0:00:05.7]} 73...
f2 {[%clk 0:00:04.3]} 74. Kg3 {[%clk 0:00:05.8]} 74... Re3+ {[%clk 0:00:04.6]}
75. Kf4 {[%clk 0:00:06.5]} 75... Rb3 {[%clk 0:00:02.6]} 76. Ra1+ {[%clk
0:00:02.9]} 76... Kg2 {[%clk 0:00:03]} 77. Ra2 {[%clk 0:00:03.4]} 77... Kg1
{[%clk 0:00:03.5]} 78. Rxf2 {[%clk 0:00:02.8]} 78... Kxf2 {[%clk 0:00:03.7]} 0-1